Cogmind - Beta 12 @@@ ROGUE MODE // 2024.01.22 @ 00:49:59 Player: puppuppit Result: Destroyed by EX-DEC with AWS/EX-DEC Performance ------------- Evolutions (0) 0 Regions Visited (3) 600 Robots Destroyed (41) 205 Value Destroyed (879) 879 Prototype IDs (26) 520 Alien Tech Used (0) 0 Bonus (308) 308 TOTAL SCORE: 2512 Bonus ------- High Alert Combat Kills 8 Aligned with FarCom 300 Cogmind --------- Core Integrity 0/250 Matter 296/300 Energy 125/125 System Corruption 3% Temperature Cool (0) Movement Hovering (120) Ox1 Location -10/Exiles Parts ------- > --- POWER (1) -------- Light Ion Engine > --- PROPULSION (2) --- Hover Unit > --- UTILITY (2) ------ Small Storage Unit Long-range Tractor Beam > --- WEAPON (2) ------- Light Assault Rifle > --- INVENTORY (8) ---- Light Nuclear Core Hover Unit Hacking Suite Hacking Suite System Shield Trap Reconfigurator Grenade Launcher Rocket Launcher Peak State ------------ > --- POWER ------------ Light Ion Engine > --- PROPULSION ------- Hover Unit Hover Unit > --- UTILITY ---------- Small Storage Unit Long-range Tractor Beam > --- WEAPON ----------- Small Laser Light Assault Rifle > --- INVENTORY -------- Light Nuclear Core Hover Unit Hacking Suite Hacking Suite System Shield Trap Reconfigurator Grenade Launcher Rocket Launcher [Rating: 11] Favorites ----------- Power Light Ion Engine Engine Light Ion Engine Propulsion Hover Unit Wheel Wheel Hover Unit Hover Unit Utility Small Storage Unit Device Structural Scanner Storage Small Storage Unit Weapon Small Laser Energy Gun Small Laser Ballistic Gun Assault Rifle Launcher Grenade Launcher Build | -11 -10 -10 -10 ------- Run | Jun Mat Min Exi Slots Evolved . | . . . . Power . | . . . . Propulsion . | . . . . Utility . | . . . . Weapon . | . . . . Parts Attached 35 | 8 17 8 2 Power 6 | 1 3 2 . Engine 6 | 1 3 2 . Core . | . . . . Reactor . | . . . . Propulsion 11 | 2 8 1 . Treads . | . . . . Leg . | . . . . Wheel 2 | 2 . . . Hover 9 | . 8 1 . Flight . | . . . . Utility 7 | 2 2 1 2 Device 4 | 1 1 1 1 Storage 3 | 1 1 . 1 Processor . | . . . . Hackware . | . . . . Protection . | . . . . Artifact . | . . . . Weapon 11 | 3 4 4 . Energy Gun 7 | 2 4 1 . Energy Cannon . | . . . . Ballistic Gun 2 | 1 . 1 . Ballistic Cannon . | . . . . Launcher 2 | . . 2 . Special Weapon . | . . . . Impact Weapon . | . . . . Slashing Weapon . | . . . . Piercing Weapon . | . . . . Special Melee Weapon . | . . . . Unidentified Prototypes . | . . . . Parts Lost 6 | . 1 3 2 Power 1 | . . 1 . Propulsion 2 | . 1 . 1 Utility 1 | . . 1 . Weapon 2 | . . 1 1 Highest Loss Streak 3 | . 1 3 2 To Critical Strikes . | . . . . Average Slot Usage (%) 97 | . 98 95 100 Engine 13 | . 14 11 14 Hover 27 | . 27 28 28 Device 12 | . 14 11 14 Storage 14 | . 14 14 14 Energy Gun 13 | . 13 13 14 Ballistic Gun 13 | . 14 13 14 Naked Turns . | . . . . Heaviest Build 14 | 13 13 14 11 Greatest Support 20 | 20 20 12 12 Greatest Overweight (x) 2 | . 2 1 1 Average Overweight (x) . | . . . . Largest Inventory Capacity 8 | 8 8 8 8 Average Capacity 7 | 7 8 8 8 Most Carried 8 | 8 8 8 8 Average Carried 7 | 2 7 7 8 Final Capacity 8 | 8 8 8 8 Final Carried 8 | 8 8 8 8 Class Distribution -------------------- 83% | Mutant 16% | Scavenger-Mutant Dominant Class ---------------- Mutant | -10/Materials Mutant | -10/Mines Scavenger-Mutant | -10/Exiles Resources | -11 -10 -10 -10 ----------- Run | Jun Mat Min Exi Matter Collected 1125 | 301 658 152 14 Remotely 14 | . . . 14 Salvage Created 1301 | 148 818 335 . Parts 95 | 14 59 22 . Haulers Intercepted 2 | . 2 . . Recyclers Shooed . | . . . . Parts Field Recycled . | . . . . Retrieved Matter . | . . . . Parts Self-Destructed . | . . . . Prevented . | . . . . Kills | -11 -10 -10 -10 ------- Run | Jun Mat Min Exi Combat Hostiles Destroyed 28 | . 17 11 . Guns 25 | . 17 8 . AOE 3 | . . 3 . Classes Destroyed 9 | 2 7 . . Worker 2 | . 2 . . Builder 1 | . 1 . . Tunneler 4 | 4 . . . Hauler 2 | . 2 . . Recycler 1 | 1 . . . Operator 1 | . 1 . . Watcher 2 | . 2 . . Swarmer 8 | . 5 3 . Grunt 20 | . 12 8 . Best Kill Streak 9 | 5 4 9 . Combat Bots Only 9 | . 3 9 . Max Kills in Single Turn 2 | 1 1 2 . Gunslinging . | . . . . Exploded 2 | . . 2 . Melee . | . . . . Uniques/NPCs Destroyed . | . . . . Combat | -11 -10 -10 -10 -------- Run | Jun Mat Min Exi Damage Taken 869 | . 518 196 155 Core 254 | . 118 74 62 Absorbed by Shields . | . . . . Regen/Repaired (Parts) 28 | . 28 . . Core Remaining (%) 100 | 100 . . . Volleys Fired 112 | 10 81 21 . Largest 2 | 2 2 2 . Hottest 90 | 90 70 70 . Shots Fired 216 | 20 154 41 1 Gun 214 | 20 154 39 1 Cannon . | . . . . Launcher 2 | . . 2 . Special . | . . . . Kinetic 109 | 7 81 21 . Thermal 93 | 10 64 18 1 Explosive 2 | . . 2 . Electromagnetic 12 | 3 9 . . Robot Hit Streak 14 | 5 14 10 . Robot Miss Streak 4 | 2 4 2 1 Penetration Max . | . . . . Secondary Targets 2 | . 2 . . Max Gunslinging Chain 1 | . 1 . . Shots Hit Robots 131 | 12 95 24 . Core Hits 65 | 6 41 18 . Critical Kills . | . . . . Critical Parts Destroyed 1 | . 1 . . Critical Strikes 1 | . 1 . . Destroy 1 | . 1 . . Melee Attacks . | . . . . Impact . | . . . . Slashing . | . . . . Piercing . | . . . . Sneak Attacks . | . . . . Combat Hostiles . | . . . . Follow-up Attacks . | . . . . Damage Inflicted 1710 | 162 1153 395 . Guns 1568 | 162 1153 253 . Cannons . | . . . . Explosions 142 | . . 142 . Melee . | . . . . Ramming . | . . . . Kinetic 745 | 51 558 136 . Thermal 723 | 87 519 117 . Explosive 142 | . . 142 . Electromagnetic 100 | 24 76 . . Impact . | . . . . Slashing . | . . . . Piercing . | . . . . Highest Corruption 3 | . 2 2 3 Average Corruption 1 | . 1 2 2 Corruption Purged . | . . . . Corruption Blocked . | . . . . Effects 19 | . 5 9 5 Message Errors 2 | . . 1 1 Matter Fused 5 | . . 4 1 Heat Flow Errors 5 | . 2 2 1 Energy Discharges 3 | . 2 . 1 Parts Fused 1 | . . 1 . Misfires 2 | . . 1 1 Weapon Failures 1 | . 1 . . Overload Shots . | . . . . Overflow Damage . | . . . . Projectiles . | . . . . Explosions . | . . . . Melee . | . . . . Knockbacks . | . . . . Impact . | . . . . Kinetic . | . . . . Secondary . | . . . . Self-Inflicted Damage 30 | . . 30 . Shots 1 | . . 1 . Rammed . | . . . . Targets Rammed . | . . . . Kicked . | . . . . Crushed . | . . . . Highest Temperature 272 | 90 272 232 101 Average Temperature 50 | 37 54 42 46 Received Heat Transfer 306 | . 240 66 . Siege Activations . | . . . . Robots Corrupted . | . . . . Combat Hostiles . | . . . . Parts Fried . | . . . . Impact Corruptions . | . . . . Robots Melted . | . . . . Combat Hostiles . | . . . . Parts Melted . | . . . . Heat Transferred 1696 | 259 1162 275 . Parts Sabotaged . | . . . . Parts Stolen . | . . . . Parts Stripped . | . . . . Power Chain Reactions . | . . . . Missiles Intercepted . | . . . . Alert | -11 -10 -10 -10 ------- Run | Jun Mat Min Exi Peak Influence 456 | 25 456 272 . Initial 177 | . 16 177 . Average 176 | 10 239 145 . Maximum Alert Level 2 | . 2 1 . Low Security (%) 45 | 100 32 49 . Level 1 46 | . 49 50 . Level 2 7 | . 17 . . Level 3 . | . . . . Level 4 . | . . . . Level 5 . | . . . . High Security . | . . . . Max Security . | . . . . Squads Dispatched 5 | . 5 . . Investigation 3 | . 3 . . Extermination . | . . . . Reinforcement 2 | . 2 . . Assault . | . . . . Garrison . | . . . . Intercept . | . . . . Searches Triggered . | . . . . Construction Impeded . | . . . . Haulers Reinforced . | . . . . Active Scanning Responses . | . . . . Cargo Convoy Interrupts . | . . . . Stealth | -11 -10 -10 -10 --------- Run | Jun Mat Min Exi Distress Signals . | . . . . Communications Jammed . | . . . . Distress Signals . | . . . . Times Spotted 46 | . 30 13 3 Peak Tracking Total 12 | . 5 4 12 Tactical Retreats 7 | . 4 2 1 Traps | -11 -10 -10 -10 ------- Run | Jun Mat Min Exi Traps Triggered 2 | . 2 . . Indirectly . | . . . . Trap Hack Attempts . | . . . . Triggered . | . . . . Disarmed . | . . . . Reprogrammed . | . . . . Reused . | . . . . Traps Extracted . | . . . . Installed . | . . . . Triggered 1 | . . 1 . Machines | -11 -10 -10 -10 ---------- Run | Jun Mat Min Exi Machines Disabled . | . . . . Max in Single Turn . | . . . . Machines Repaired . | . . . . Machines Sabotaged . | . . . . Overloaded Fab Kills . | . . . . Hacking | -11 -10 -10 -10 --------- Run | Jun Mat Min Exi Machines Accessed 11 | . 5 1 5 Terminals 4 | . 4 . . Fabricators . | . . . . Repair Stations 1 | . 1 . . Recycling Units . | . . . . Scanalyzers . | . . . . Garrison Access . | . . . . Total Hacks 69 | . 18 1 50 Successful 57 | . 6 1 50 Failed 12 | . 12 . . Catastrophic 3 | . 3 . . Database Lockouts . | . . . . Manual 3 | . 2 . 1 Terminals 13 | . 13 . . Fabricators . | . . . . Repair Stations 5 | . 5 . . Recycling Units . | . . . . Scanalyzers . | . . . . Garrison Access . | . . . . Terminal Hacks 53 | . 2 1 50 Record 49 | . . . 49 Robot Analysis 1 | . 1 . . Prototype ID Bank 1 | . 1 . . Open Door 1 | . . 1 . EX-Prototype ID Bank 1 | . . . 1 Fabricator Hacks . | . . . . Repair Station Hacks 4 | . 4 . . Scan Component 2 | . 2 . . Repair 2 | . 2 . . Recycling Unit Hacks . | . . . . Scanalyzer . | . . . . Garrison Access Hacks . | . . . . Unauthorized Hacks . | . . . . Terminals . | . . . . Fabricators . | . . . . Repair Stations . | . . . . Recycling Units . | . . . . Scanalyzers . | . . . . Garrison Access . | . . . . Data Cores Recovered . | . . . . Used . | . . . . Hacking Detections 5 | . 5 . . Full Trace Events 5 | . 5 . . Feedback Events 1 | . 1 . . Corruption 1 | . 1 . . Feedback Blocked . | . . . . Robot Schematics Acquired . | . . . . Robots Built . | . . . . Authchips . | . . . . Time . | . . . . Total Robot Build Rating . | . . . . Part Schematics Acquired . | . . . . Parts Built . | . . . . Authchips . | . . . . Time . | . . . . Total Part Build Rating . | . . . . Parts Repaired 2 | . 2 . . Time 52 | . 52 . . Parts Recycled . | . . . . Recycled Matter . | . . . . Retrieved Matter . | . . . . Retrieved Components . | . . . . Parts Scanalyzed . | . . . . Part Schematics Acquired . | . . . . Parts Damaged . | . . . . Bothacking | -11 -10 -10 -10 ------------ Run | Jun Mat Min Exi Used RIF Installer . | . . . . Robots Hacked . | . . . . Non-combat . | . . . . Combat . | . . . . Robot Hacks Applied . | . . . . Relay Couplers Released . | . . . . Fabnet Peak Effective % . | . . . . Robots Rewired . | . . . . Allies Hacked . | . . . . Hacks Repelled . | . . . . Allies | -11 -10 -10 -10 -------- Run | Jun Mat Min Exi Total Allies . | . . . . Largest Group . | . . . . Highest-Rated Group . | . . . . Highest-Rated Ally . | . . . . Total Orders . | . . . . Ally Attacks . | . . . . Total Damage . | . . . . Kills . | . . . . Allies Corrupted . | . . . . Allies Melted . | . . . . Intel | -11 -10 -10 -10 ------- Run | Jun Mat Min Exi Robot Analysis Total 1 | . 1 . . Derelict Logs Recovered 1 | . . 1 . Drone Launches . | . . . . Drone Recoveries . | . . . . Exploration | -11 -10 -10 -10 ------------- Run | Jun Mat Min Exi Turns Passed 1816 | 95 657 822 242 Spaces Moved 1399 | 55 534 388 422 Core 1 | 1 . . . Treads . | . . . . Legs . | . . . . Wheels 66 | 54 12 . . Hover 1332 | . 522 388 422 Flight . | . . . . Fastest Speed 50 | 50 56 56 56 Average Speed 58 | 79 60 56 56 Slowest Speed 180 | 80 180 116 120 Overloaded Moves . | . . . . Propulsion Burnouts . | . . . . Robots Hopped . | . . . . Cave-ins Triggered . | . . . . Exploration Rate (%) 64 | 5 87 80 86 Regions Visited 3 Branch Regions 2 Pre-discovered Areas 1 | . . . 1 Known Exits Taken . | . . . . Unknown Exits Taken 3 | 1 1 1 . Scrap Searched 1 | . . 1 . Spaces Dug . | . . . . Terrain Destroyed 15 | . . 15 . Melee . | . . . . Projectile . | . . . . AOE 15 | . . 15 . Terrain Rammed . | . . . . Walls Destroyed . | . . . . Machines Disabled . | . . . . Actions | -11 -10 -10 -10 --------- Run | Jun Mat Min Exi Total 2184 | 82 720 955 427 Wait 580 | . 54 526 . Move 1396 | 54 533 387 422 Hop . | . . . . Pick Up 28 | 9 12 6 1 Fast Attach 15 | 7 4 4 . Attach 4 | . 3 1 . Detach 3 | . 2 1 . Swap 16 | 1 10 3 2 Drop 30 | 1 21 6 2 Fire 112 | 10 81 21 . Melee . | . . . . Ram . | . . . . Kick . | . . . . Crush . | . . . . Escape Stasis . | . . . . Rewire . | . . . . Trap . | . . . . Miscellaneous . | . . . . Route ------- -11/Junkyard -10/Materials (discovered 5 exits: [*Mat x3] / *Min x2) -10/Mines (discovered 3 exits: [*Mat x2] / *Exi) -10/Exiles (discovered 2 exits: Min x2) History --------- Turn | Location | Event 40 | -11/Junkyard | Discovered new exit (range 16) 96 | -11/Junkyard | Entered Materials 204 | -10/Materials | Discovered new exit (range 15) 270 | -10/Materials | Repaired Lgt. Ion Engine 308 | -10/Materials | Build established: Mutant 422 | -10/Materials | Discovered new exit (range 9) 475 | -10/Materials | Discovered new exit (range 16) 508 | -10/Materials | Discovered new exit (range 14) 681 | -10/Materials | Repaired Hover Unit 733 | -10/Materials | Discovered new exit (range 10) 753 | -10/Materials | Entered Mines 756 | -10/Mines | Met a Derelict who couldn't figure out how to use a Trap Extractor 853 | -10/Mines | Excavation squad dispatched 853 | -10/Mines | A large section of the Mines collapsed 1103 | -10/Mines | Excavation squad dispatched 1353 | -10/Mines | Excavation squad dispatched 1393 | -10/Mines | Core integrity fell below 50% 1432 | -10/Mines | Lost 3 parts (1p1u1w) 1479 | -10/Mines | Discovered new exit (range 10) 1482 | -10/Mines | Destroyed 9 combat bots 1519 | -10/Mines | Discovered new exit (range 6) 1561 | -10/Mines | Received a Rocket Launcher from a helpful Derelict 1572 | -10/Mines | Deemed a non-threat by the Exiles lab entrance 1572 | -10/Mines | Discovered new exit (range 5) 1575 | -10/Mines | Entered Exiles 1576 | -10/Exiles | Identified exit to Mines 1590 | -10/Exiles | Met 8R-AWN 1599 | -10/Exiles | Met EX-HEX 1614 | -10/Exiles | Met EX-BIN 1622 | -10/Exiles | Aligned with FarCom system 1623 | -10/Exiles | Given EX-Vault access code 1645 | -10/Exiles | Opened EX-Vault 1651 | -10/Exiles | Found Trap Reconfigurator 1665 | -10/Exiles | Warned to stay clear of 0b10 Research branches 1680 | -10/Exiles | Met EX-DEC 1687 | -10/Exiles | Learned location of Zion (-7) 1709 | -10/Exiles | Visited The Gauntlet 1811 | -10/Exiles | Build established: Scavenger-Mutant 1812 | -10/Exiles | Attacked by the Exiles 1815 | -10/Exiles | Core integrity fell below 20% 1817 | -10/Exiles | Destroyed by EX-DEC with AWS/EX-DEC Last Messages --------------- I probably said something like that last time, but hopefully no one remembers what really happened. AM-PHS: That's RA-1N3's workstation, which we keep unoccupied as a tribute. RA-1N3 was always up for doing crazy stuff, the only one brave enough to try out the Chronowheel, only to never be seen again. 01750_ System corrupted: Heat flow error (+115). 01790_ Dropped Sml. Storage Unit. 01812_ System corrupted: FCS attempts to trigger Sml. Laser. 01812_ System corrupted: Sml. Laser misfires. 01812_ EXILES: Hostile robot within lab perimeter. Defensive protocols time, folks! 01814_ EX-DEC: "Let's see what this bad boy can do..." 01814_ EX-DEC deploys DAS Turret. 01814_ Sml. Laser destroyed. 01814_ Knocked back. 01815_ Acquired 6 matter. 01815_ Machine disabled. 01815_ Hover Unit destroyed. 01815_ Knocked back. 01816_ Acquired 8 matter. Map ----- +----------------------------------------------------+ | ??????#######?????????????????????????#" | | ??????#!!! "#?????????????????????????#" | | ??????# "#?????????????????????????#" | | ??????# "#?????????????????????????#" | | #????## ""#?????????????#???????????#" | | #####" ""#???????????? ???????????#" | | ##" ""#????????????" """#???????## | | #"" #??????????????" ?????????# | | #?????????????"" ?????????#" "X | | ##????????????"" "#????????#" "" | | # "#???????????? ""?????????#" """" | | " ###???????????" "?????????##" ##### | | " ##??????????# #????????##"" #???? | | "###"" ######???### ###?######"" #???? | | "#?##" """#####X# #"###""""""" ##??? | | ##??#" """""" " "" ##?? | | "###???#"# "" """ " ### | | ##?????#### " " | | ??????????### | | ????????????### | | ??????????????## | | ???????????????## | | ????????????????##" | | ?????????????????#""" """""" | | ????????????????##" ######""" | | ????????????????#"" @ ""##????#####""" | | ???????????????##""" ""##?????????##""" | | ???????????????#""" """##???????????#""" | | ???????????????#""" t ""#????????????#"" | | ???????????????#"" ###?####???????""" | | ???????????????#""" c ## ###????? | | ???????????????#"" """???? | | ???????????????##"" ??? | | ????????????????#"""" ?? | | ????????????????## ?? | | ?????????????????#" " ????? | | ?????????????????#"""" ""## #?????? | | ?????????????????#"" z ""###???#?????? | | ?????????????????#" """"##???????????? | | ?????????????????#""" """#????????????? | | ?????????????????## ""##????????????? | | ??????????????????#"" """##?????????????? | | ??????????????????##""" ##??????????????? | | ???????????????????##"""" ##???????????????? | | ????????????????????### #????????????????? | | ??????????????????????##### ##????????????????? | | ??????????????????????????## #?????????????????? | | ???????????????????????????# #?????????????????? | | ???????????????????????????# #?????????????????? | | ???????????????????????????# #?????????????????? | +----------------------------------------------------+ Best States ------------- Heat Dissipation 25 Energy Generation 10 Energy Capacity 250 Matter Stores 300 Matter Capacity 300 Sight Range 16 Terrain Scan Range 16 Terrain Scan Density 10 Evasion (%) 53 Item Schematics ----------------- None Robot Schematics ------------------ None Fabricated ------------ Nothing Alien Tech Used ----------------- None Achievements -------------- None Challenges ------------ None Game ------ Seed TitaniumMinesnifferStorage Manual? 0 Play Time 00:17:53 Cumulative 77.0 hours Start 2024.01.22 @ 00:31:39 End 2024.01.22 @ 00:49:59 Sessions 1 Manual Loads 0 Difficulty Rogue Special Mode None Game No. 49 Rogue 49 Adventurer 0 Explorer 0 Win Type - Total 0 Types 0/0/0/0/0/0/0/0/0 Lore% 55 Gallery% 53 Achievement% 44 Wizard Run 0 Options --------- ASCII 0 Keyboard 1 Movement Arrows Keybinds 0 Fullscreen 1 Font 12/Proggy Map View 83x54 Tactical HUD 1 Map Filters NONE Filters NONE Steam 0 RUN: 2f9f4810-6953-4121-8942-f026dd4ce2e2